Workbook

Sheet Saisie des salaires
B1: CALCULATEUR DE SALAIRE | K1: FIN DE PÉRIODE : | L1: 41372 | N1: NOM DE SOCIÉTÉ | P1: ADVENTURE WORKS
B3: ID | C3: Nom de l’employé | D3: Heures prestées enregistrées | E3: Heures de vacances | F3: Congés maladie | G3: Heures supplémentaires | H3: Tarif heures supplémentaires | I3: Salaire brut | J3: Impôts et déductions | K3: Autres déductions | L3: Salaire net | N3: Salaire horaire | O3: Régime fiscal | P3: Allocation fédérale | Q3: Impôts locaux | R3: Impôt fédéral sur le revenu | S3: Cotisations sociales | T3: Impôt sur l’assurance maladie | U3: Total impôts retenus | V3: Déduction assurance | W3: Autres déductions enregistrées | X3: Total déductions enregistrées
B4: 1001 | C4: Jean-Charles Colon | D4: 50 | E4: 5 | F4: 1 | I4: =SUM(Employés[[#This Row],[Heures prestées enregistrées]:[Congés maladie]])*Employés[[#This Row],[Salaire horaire]]+Employés[[#This Row],[Heures supplémentaires]]*Employés[[#This Row],[Tarif heures supplémentaires]] -> 560 | J4: =Employés[[#This Row],[Salaire brut]]*Employés[[#This Row],[Total impôts retenus]] + Employés[[#This Row],[Total déductions enregistrées]] -> 273.08 | K4: 20 | L4: =Employés[[#This Row],[Salaire brut]]-Employés[[#This Row],[Impôts et déductions]]-Employés[[#This Row],[Autres déductions]] -> 266.92 | N4: 10 | O4: 1 | P4: 4 | Q4: 0.023 | R4: 0.28 | S4: 0.063 | T4: 0.0145 | U4: =SUM(Employés[[#This Row],[Impôts locaux]:[Impôt sur l’assurance maladie]]) -> 0.3805 | V4: 20 | W4: 40 | X4: =SUM(Employés[[#This Row],[Déduction assurance]:[Autres déductions enregistrées]]) -> 60
B5: 1002 | C5: David Jones | D5: 40 | I5: =SUM(Employés[[#This Row],[Heures prestées enregistrées]:[Congés maladie]])*Employés[[#This Row],[Salaire horaire]]+Employés[[#This Row],[Heures supplémentaires]]*Employés[[#This Row],[Tarif heures supplémentaires]] -> 320 | J5: =Employés[[#This Row],[Salaire brut]]*Employés[[#This Row],[Total impôts retenus]] + Employés[[#This Row],[Total déductions enregistrées]] -> 131.76 | L5: =Employés[[#This Row],[Salaire brut]]-Employés[[#This Row],[Impôts et déductions]]-Employés[[#This Row],[Autres déductions]] -> 188.24 | N5: 8 | O5: 1 | P5: 1 | Q5: 0.023 | R5: 0.28 | S5: 0.063 | T5: 0.0145 | U5: =SUM(Employés[[#This Row],[Impôts locaux]:[Impôt sur l’assurance maladie]]) -> 0.3805 | V5: 0 | W5: 10 | X5: =SUM(Employés[[#This Row],[Déduction assurance]:[Autres déductions enregistrées]]) -> 10
B6: 1003 | C6: Eva Gunnarsson | D6: 35 | E6: 3 | I6: =SUM(Employés[[#This Row],[Heures prestées enregistrées]:[Congés maladie]])*Employés[[#This Row],[Salaire horaire]]+Employés[[#This Row],[Heures supplémentaires]]*Employés[[#This Row],[Tarif heures supplémentaires]] -> 532 | J6: =Employés[[#This Row],[Salaire brut]]*Employés[[#This Row],[Total impôts retenus]] + Employés[[#This Row],[Total déductions enregistrées]] -> 240.426 | L6: =Employés[[#This Row],[Salaire brut]]-Employés[[#This Row],[Impôts et déductions]]-Employés[[#This Row],[Autres déductions]] -> 291.574 | N6: 14 | O6: 1 | P6: 3 | Q6: 0.023 | R6: 0.28 | S6: 0.063 | T6: 0.0145 | U6: =SUM(Employés[[#This Row],[Impôts locaux]:[Impôt sur l’assurance maladie]]) -> 0.3805 | V6: 18 | W6: 20 | X6: =SUM(Employés[[#This Row],[Déduction assurance]:[Autres déductions enregistrées]]) -> 38
B7: 1008 | C7: Sébastien Motte | D7: 50 | E7: 5 | F7: 1 | I7: =SUM(Employés[[#This Row],[Heures prestées enregistrées]:[Congés maladie]])*Employés[[#This Row],[Salaire horaire]]+Employés[[#This Row],[Heures supplémentaires]]*Employés[[#This Row],[Tarif heures supplémentaires]] -> 1120 | J7: =Employés[[#This Row],[Salaire brut]]*Employés[[#This Row],[Total impôts retenus]] + Employés[[#This Row],[Total déductions enregistrées]] -> 441.16 | L7: =Employés[[#This Row],[Salaire brut]]-Employés[[#This Row],[Impôts et déductions]]-Employés[[#This Row],[Autres déductions]] -> 678.84 | N7: 20 | O7: 1 | P7: 0 | Q7: 0.023 | R7: 0.28 | S7: 0.063 | T7: 0.0145 | U7: =SUM(Employés[[#This Row],[Impôts locaux]:[Impôt sur l’assurance maladie]]) -> 0.3805 | V7: 15 | X7: =SUM(Employés[[#This Row],[Déduction assurance]:[Autres déductions enregistrées]]) -> 15
B8: 1011 | C8: Isabelle Scemla | D8: 40 | G8: 2 | H8: 15 | I8: =SUM(Employés[[#This Row],[Heures prestées enregistrées]:[Congés maladie]])*Employés[[#This Row],[Salaire horaire]]+Employés[[#This Row],[Heures supplémentaires]]*Employés[[#This Row],[Tarif heures supplémentaires]] -> 430 | J8: =Employés[[#This Row],[Salaire brut]]*Employés[[#This Row],[Total impôts retenus]] + Employés[[#This Row],[Total déductions enregistrées]] -> 223.615 | L8: =Employés[[#This Row],[Salaire brut]]-Employés[[#This Row],[Impôts et déductions]]-Employés[[#This Row],[Autres déductions]] -> 206.385 | N8: 10 | O8: 1 | P8: 0 | Q8: 0.023 | R8: 0.28 | S8: 0.063 | T8: 0.0145 | U8: =SUM(Employés[[#This Row],[Impôts locaux]:[Impôt sur l’assurance maladie]]) -> 0.3805 | V8: 20 | W8: 40 | X8: =SUM(Employés[[#This Row],[Déduction assurance]:[Autres déductions enregistrées]]) -> 60
B9: 1012 | C9: David Bristol | D9: 40 | E9: 5 | F9: 1 | I9: =SUM(Employés[[#This Row],[Heures prestées enregistrées]:[Congés maladie]])*Employés[[#This Row],[Salaire horaire]]+Employés[[#This Row],[Heures supplémentaires]]*Employés[[#This Row],[Tarif heures supplémentaires]] -> 552 | J9: =Employés[[#This Row],[Salaire brut]]*Employés[[#This Row],[Total impôts retenus]] + Employés[[#This Row],[Total déductions enregistrées]] -> 270.036 | L9: =Employés[[#This Row],[Salaire brut]]-Employés[[#This Row],[Impôts et déductions]]-Employés[[#This Row],[Autres déductions]] -> 281.964 | N9: 12 | O9: 1 | P9: 4 | Q9: 0.023 | R9: 0.28 | S9: 0.063 | T9: 0.0145 | U9: =SUM(Employés[[#This Row],[Impôts locaux]:[Impôt sur l’assurance maladie]]) -> 0.3805 | V9: 20 | W9: 40 | X9: =SUM(Employés[[#This Row],[Déduction assurance]:[Autres déductions enregistrées]]) -> 60
B10: 1025 | C10: Anne Weiler | D10: 36 | F10: 2 | G10: 1 | H10: 18 | I10: =SUM(Employés[[#This Row],[Heures prestées enregistrées]:[Congés maladie]])*Employés[[#This Row],[Salaire horaire]]+Employés[[#This Row],[Heures supplémentaires]]*Employés[[#This Row],[Tarif heures supplémentaires]] -> 474 | J10: =Employés[[#This Row],[Salaire brut]]*Employés[[#This Row],[Total impôts retenus]] + Employés[[#This Row],[Total déductions enregistrées]] -> 225.357 | K10: 25 | L10: =Employés[[#This Row],[Salaire brut]]-Employés[[#This Row],[Impôts et déductions]]-Employés[[#This Row],[Autres déductions]] -> 223.643 | N10: 12 | O10: 1 | P10: 2 | Q10: 0.023 | R10: 0.28 | S10: 0.063 | T10: 0.0145 | U10: =SUM(Employés[[#This Row],[Impôts locaux]:[Impôt sur l’assurance maladie]]) -> 0.3805 | V10: 25 | W10: 20 | X10: =SUM(Employés[[#This Row],[Déduction assurance]:[Autres déductions enregistrées]]) -> 45
B11: 1032 | C11: Luka Abrus | D11: 40 | E11: 5 | F11: 1 | I11: =SUM(Employés[[#This Row],[Heures prestées enregistrées]:[Congés maladie]])*Employés[[#This Row],[Salaire horaire]]+Employés[[#This Row],[Heures supplémentaires]]*Employés[[#This Row],[Tarif heures supplémentaires]] -> 460 | J11: =Employés[[#This Row],[Salaire brut]]*Employés[[#This Row],[Total impôts retenus]] + Employés[[#This Row],[Total déductions enregistrées]] -> 175.03 | K11: 50 | L11: =Employés[[#This Row],[Salaire brut]]-Employés[[#This Row],[Impôts et déductions]]-Employés[[#This Row],[Autres déductions]] -> 234.97 | N11: 10 | O11: 1 | P11: 3 | Q11: 0.023 | R11: 0.28 | S11: 0.063 | T11: 0.0145 | U11: =SUM(Employés[[#This Row],[Impôts locaux]:[Impôt sur l’assurance maladie]]) -> 0.3805 | X11: =SUM(Employés[[#This Row],[Déduction assurance]:[Autres déductions enregistrées]]) -> 0
B12: 1049 | C12: David Dupont | D12: 40 | E12: 1 | I12: =SUM(Employés[[#This Row],[Heures prestées enregistrées]:[Congés maladie]])*Employés[[#This Row],[Salaire horaire]]+Employés[[#This Row],[Heures supplémentaires]]*Employés[[#This Row],[Tarif heures supplémentaires]] -> 615 | J12: =Employés[[#This Row],[Salaire brut]]*Employés[[#This Row],[Total impôts retenus]] + Employés[[#This Row],[Total déductions enregistrées]] -> 259.0075 | K12: 23 | L12: =Employés[[#This Row],[Salaire brut]]-Employés[[#This Row],[Impôts et déductions]]-Employés[[#This Row],[Autres déductions]] -> 332.9925 | N12: 15 | O12: 1 | P12: 2 | Q12: 0.023 | R12: 0.28 | S12: 0.063 | T12: 0.0145 | U12: =SUM(Employés[[#This Row],[Impôts locaux]:[Impôt sur l’assurance maladie]]) -> 0.3805 | V12: 25 | X12: =SUM(Employés[[#This Row],[Déduction assurance]:[Autres déductions enregistrées]]) -> 25
B13: Totaux | C13: =SUBTOTAL(103,Employés[Nom de l’employé]) -> 9 | D13: =SUBTOTAL(109,Employés[Heures prestées enregistrées]) -> 371 | E13: =SUBTOTAL(109,Employés[Heures de vacances]) -> 24 | F13: =SUBTOTAL(109,Employés[Congés maladie]) -> 6 | G13: =SUBTOTAL(109,Employés[Heures supplémentaires]) -> 3 | I13: =SUBTOTAL(109,Employés[Salaire brut]) -> 5063 | J13: =SUBTOTAL(109,Employés[Impôts et déductions]) -> 2239.4715 | K13: =SUBTOTAL(109,Employés[Autres déductions]) -> 118 | L13: =SUBTOTAL(109,Employés[Salaire net]) -> 2705.5285 | V13: =SUBTOTAL(109,Employés[Déduction assurance]) -> 143 | W13: =SUBTOTAL(109,Employés[Autres déductions enregistrées]) -> 170 | X13: =SUBTOTAL(109,Employés[Total déductions enregistrées]) -> 313

Sheet modèle_fiches (hidden)
C2: =NomSociété -> ADVENTURE WORKS
C3: PÉRIODE | D3: =FinPériode -> 41372 | G3: NOM | H3: =IFERROR(INDEX(#REF!,Fiche),"") ->  | K3: ID EMPLOYÉ | L3: =IFERROR(INDEX(Employés[ID],Fiche),"") -> 1001
C4: Régime fiscal | E4: =IFERROR(INDEX(Employés[Régime fiscal],Fiche),"") -> 1 | G4: Allocation fédérale (formulaire W-4) | I4: =IFERROR(INDEX(Employés[Allocation fédérale],Fiche),"") -> 4 | K4: Heures prestées | M4: =IFERROR(INDEX(Employés[Heures prestées enregistrées],Fiche),"") -> 50
C5: Tarif horaire | E5: =IFERROR(INDEX(Employés[Salaire horaire],Fiche),"") -> 10 | G5: Tarif heures supplémentaires | I5: =IFERROR(INDEX(Employés[Tarif heures supplémentaires],Fiche),"") -> 0 | K5: Congés maladie | M5: =IFERROR(INDEX(Employés[Congés maladie],Fiche),"") -> 1
C6: Cotisations sociales | E6: =IFERROR(INDEX(Employés[Cotisations sociales],Fiche) * INDEX(Employés[Salaire brut],Fiche),"") -> 35.28 | G6: Impôt fédéral sur le revenu | I6: =IFERROR(INDEX(Employés[Impôt fédéral sur le revenu],Fiche) * INDEX(Employés[Salaire brut],Fiche),"") -> 156.8 | K6: Heures de vacances | M6: =IFERROR(INDEX(Employés[Heures de vacances],Fiche),"") -> 5
C7: Impôt sur l’assurance maladie | E7: =IFERROR(INDEX(Employés[Impôt sur l’assurance maladie],Fiche) * INDEX(Employés[Salaire brut],Fiche),"") -> 8.12 | G7: Impôts locaux | I7: =IFERROR(INDEX(Employés[Impôts locaux],Fiche) * INDEX(Employés[Salaire brut],Fiche),"") -> 12.88 | K7: Heures supplémentaires | M7: =IFERROR(INDEX(Employés[Heures supplémentaires],Fiche),"") -> 0
C8: Déduction assurance | E8: =IFERROR(INDEX(Employés[Déduction assurance],Fiche),"") -> 20 | G8: Autres déductions standard | I8: =IFERROR(INDEX(Employés[Autres déductions enregistrées],Fiche),"") -> 40 | K8: Salaire brut | M8: =IFERROR(INDEX(Employés[Salaire brut],Fiche),"") -> 560
C9: Total des impôts et | E9: =IFERROR(INDEX(Employés[Impôts et déductions],Fiche),"") -> 273.08 | G9: Autres déductions | I9: =IFERROR(INDEX(Employés[Autres déductions],Fiche),"") -> 20 | K9: Total des impôts et déductions | M9: =IFERROR(INDEX(Employés[Impôts et déductions],Fiche) + INDEX(Employés[Autres déductions],Fiche),"") -> 293.08
C10: déductions standard
K11: SALAIRE NET | M11: =IFERROR(INDEX(Employés[Salaire net],Fiche),"") -> 266.92
C14: =NomSociété -> ADVENTURE WORKS
C15: PÉRIODE | D15: =FinPériode -> 41372 | G15: NOM | H15: =IFERROR(INDEX(#REF!,Fiche),"") ->  | K15: ID EMPLOYÉ | L15: =IFERROR(INDEX(Employés[ID],Fiche),"") -> 1002
C16: Régime fiscal | E16: =IFERROR(INDEX(Employés[Régime fiscal],Fiche),"") -> 1 | G16: Allocation fédérale (formulaire W-4) | I16: =IFERROR(INDEX(Employés[Allocation fédérale],Fiche),"") -> 1 | K16: Heures prestées | M16: =IFERROR(INDEX(Employés[Heures prestées enregistrées],Fiche),"") -> 40
C17: Tarif horaire | E17: =IFERROR(INDEX(Employés[Salaire horaire],Fiche),"") -> 8 | G17: Tarif heures supplémentaires | I17: =IFERROR(INDEX(Employés[Tarif heures supplémentaires],Fiche),"") -> 0 | K17: Congés maladie | M17: =IFERROR(INDEX(Employés[Congés maladie],Fiche),"") -> 0
C18: Cotisations sociales | E18: =IFERROR(INDEX(Employés[Cotisations sociales],Fiche) * INDEX(Employés[Salaire brut],Fiche),"") -> 20.16 | G18: Impôt fédéral sur le revenu | I18: =IFERROR(INDEX(Employés[Impôt fédéral sur le revenu],Fiche) * INDEX(Employés[Salaire brut],Fiche),"") -> 89.6 | K18: Heures de vacances | M18: =IFERROR(INDEX(Employés[Heures de vacances],Fiche),"") -> 0
C19: Impôt sur l’assurance maladie | E19: =IFERROR(INDEX(Employés[Impôt sur l’assurance maladie],Fiche) * INDEX(Employés[Salaire brut],Fiche),"") -> 4.64 | G19: Impôts locaux | I19: =IFERROR(INDEX(Employés[Impôts locaux],Fiche) * INDEX(Employés[Salaire brut],Fiche),"") -> 7.36 | K19: Heures supplémentaires | M19: =IFERROR(INDEX(Employés[Heures supplémentaires],Fiche),"") -> 0
C20: Déduction assurance | E20: =IFERROR(INDEX(Employés[Déduction assurance],Fiche),"") -> 0 | G20: Autres déductions standard | I20: =IFERROR(INDEX(Employés[Autres déductions enregistrées],Fiche),"") -> 10 | K20: Salaire brut | M20: =IFERROR(INDEX(Employés[Salaire brut],Fiche),"") -> 320
C21: Total des impôts et | E21: =IFERROR(INDEX(Employés[Impôts et déductions],Fiche),"") -> 131.76 | G21: Autres déductions | I21: =IFERROR(INDEX(Employés[Autres déductions],Fiche),"") -> 0 | K21: Total des impôts et déductions | M21: =IFERROR(INDEX(Employés[Impôts et déductions],Fiche) + INDEX(Employés[Autres déductions],Fiche),"") -> 131.76
C22: déductions standard
K23: SALAIRE NET | M23: =IFERROR(INDEX(Employés[Salaire net],Fiche),"") -> 188.24
C26: =NomSociété -> ADVENTURE WORKS
C27: PÉRIODE | D27: =FinPériode -> 41372 | G27: NOM | H27: =IFERROR(INDEX(#REF!,Fiche),"") ->  | K27: ID EMPLOYÉ | L27: =IFERROR(INDEX(Employés[ID],Fiche),"") -> 1003
C28: Régime fiscal | E28: =IFERROR(INDEX(Employés[Régime fiscal],Fiche),"") -> 1 | G28: Allocation fédérale (formulaire W-4) | I28: =IFERROR(INDEX(Employés[Allocation fédérale],Fiche),"") -> 3 | K28: Heures prestées | M28: =IFERROR(INDEX(Employés[Heures prestées enregistrées],Fiche),"") -> 35
C29: Tarif horaire | E29: =IFERROR(INDEX(Employés[Salaire horaire],Fiche),"") -> 14 | G29: Tarif heures supplémentaires | I29: =IFERROR(INDEX(Employés[Tarif heures supplémentaires],Fiche),"") -> 0 | K29: Congés maladie | M29: =IFERROR(INDEX(Employés[Congés maladie],Fiche),"") -> 0
C30: Cotisations sociales | E30: =IFERROR(INDEX(Employés[Cotisations sociales],Fiche) * INDEX(Employés[Salaire brut],Fiche),"") -> 33.516 | G30: Impôt fédéral sur le revenu | I30: =IFERROR(INDEX(Employés[Impôt fédéral sur le revenu],Fiche) * INDEX(Employés[Salaire brut],Fiche),"") -> 148.96 | K30: Heures de vacances | M30: =IFERROR(INDEX(Employés[Heures de vacances],Fiche),"") -> 3
C31: Impôt sur l’assurance maladie | E31: =IFERROR(INDEX(Employés[Impôt sur l’assurance maladie],Fiche) * INDEX(Employés[Salaire brut],Fiche),"") -> 7.714 | G31: Impôts locaux | I31: =IFERROR(INDEX(Employés[Impôts locaux],Fiche) * INDEX(Employés[Salaire brut],Fiche),"") -> 12.236 | K31: Heures supplémentaires | M31: =IFERROR(INDEX(Employés[Heures supplémentaires],Fiche),"") -> 0
C32: Déduction assurance | E32: =IFERROR(INDEX(Employés[Déduction assurance],Fiche),"") -> 18 | G32: Autres déductions standard | I32: =IFERROR(INDEX(Employés[Autres déductions enregistrées],Fiche),"") -> 20 | K32: Salaire brut | M32: =IFERROR(INDEX(Employés[Salaire brut],Fiche),"") -> 532
C33: Total des impôts et | E33: =IFERROR(INDEX(Employés[Impôts et déductions],Fiche),"") -> 240.426 | G33: Autres déductions | I33: =IFERROR(INDEX(Employés[Autres déductions],Fiche),"") -> 0 | K33: Total des impôts et déductions | M33: =IFERROR(INDEX(Employés[Impôts et déductions],Fiche) + INDEX(Employés[Autres déductions],Fiche),"") -> 240.426
C34: déductions standard
K35: SALAIRE NET | M35: =IFERROR(INDEX(Employés[Salaire net],Fiche),"") -> 291.574
C38: =NomSociété -> ADVENTURE WORKS
C39: PÉRIODE | D39: =FinPériode -> 41372 | G39: NOM | H39: =IFERROR(INDEX(#REF!,Fiche),"") ->  | K39: ID EMPLOYÉ | L39: =IFERROR(INDEX(Employés[ID],Fiche),"") -> 1008
C40: Régime fiscal | E40: =IFERROR(INDEX(Employés[Régime fiscal],Fiche),"") -> 1 | G40: Allocation fédérale (formulaire W-4) | I40: =IFERROR(INDEX(Employés[Allocation fédérale],Fiche),"") -> 0 | K40: Heures prestées | M40: =IFERROR(INDEX(Employés[Heures prestées enregistrées],Fiche),"") -> 50
C41: Tarif horaire | E41: =IFERROR(INDEX(Employés[Salaire horaire],Fiche),"") -> 20 | G41: Tarif heures supplémentaires | I41: =IFERROR(INDEX(Employés[Tarif heures supplémentaires],Fiche),"") -> 0 | K41: Congés maladie | M41: =IFERROR(INDEX(Employés[Congés maladie],Fiche),"") -> 1
C42: Cotisations sociales | E42: =IFERROR(INDEX(Employés[Cotisations sociales],Fiche) * INDEX(Employés[Salaire brut],Fiche),"") -> 70.56 | G42: Impôt fédéral sur le revenu | I42: =IFERROR(INDEX(Employés[Impôt fédéral sur le revenu],Fiche) * INDEX(Employés[Salaire brut],Fiche),"") -> 313.6 | K42: Heures de vacances | M42: =IFERROR(INDEX(Employés[Heures de vacances],Fiche),"") -> 5
C43: Impôt sur l’assurance maladie | E43: =IFERROR(INDEX(Employés[Impôt sur l’assurance maladie],Fiche) * INDEX(Employés[Salaire brut],Fiche),"") -> 16.24 | G43: Impôts locaux | I43: =IFERROR(INDEX(Employés[Impôts locaux],Fiche) * INDEX(Employés[Salaire brut],Fiche),"") -> 25.76 | K43: Heures supplémentaires | M43: =IFERROR(INDEX(Employés[Heures supplémentaires],Fiche),"") -> 0
C44: Déduction assurance | E44: =IFERROR(INDEX(Employés[Déduction assurance],Fiche),"") -> 15 | G44: Autres déductions standard | I44: =IFERROR(INDEX(Employés[Autres déductions enregistrées],Fiche),"") -> 0 | K44: Salaire brut | M44: =IFERROR(INDEX(Employés[Salaire brut],Fiche),"") -> 1120
C45: Total des impôts et | E45: =IFERROR(INDEX(Employés[Impôts et déductions],Fiche),"") -> 441.16 | G45: Autres déductions | I45: =IFERROR(INDEX(Employés[Autres déductions],Fiche),"") -> 0 | K45: Total des impôts et déductions | M45: =IFERROR(INDEX(Employés[Impôts et déductions],Fiche) + INDEX(Employés[Autres déductions],Fiche),"") -> 441.16
C46: déductions standard
K47: SALAIRE NET | M47: =IFERROR(INDEX(Employés[Salaire net],Fiche),"") -> 678.84
